Workbook

Sheet Sheet1
A2: Tabla de frecuencia
A4: 1 Vive en Bogota
C5: Frecuencia | D5: Porcentaje
A6: Válido | B6: Si | C6: 929 | D6: =+C6/997 -> 0.9317953862
B7: No | C7: 68 | D7: =+C7/997 -> 0.06820461384
B8: Total | C8: 997 | D8: 1
A18: 2 Lugar de residencia (Base 68=6.8%)
C19: Frecuencia | D19: Porcentaje
A20: Válido | B20: Nacional | C20: 45 | D20: =+C20/68 -> 0.6617647059
B21: Extranjero | C21: 11 | D21: =+C21/68 -> 0.1617647059
B22: Ns/Nr | C22: 12 | D22: 0.1764705882
B23: No aplica | C23: 929 | D23: =+C23/997 -> 0.9317953862
B24: Total | C24: 997 | D24: =+C24/997 -> 1
A35: 2a Departameto / Pais (Base 68=6.8%)
C36: Frecuencia | D36: Porcentaje
A37: Válido | B37: 88 | C37: 929 | D37: =+C37/997 -> 0.9317953862
B38: 99 | C38: 5 | D38: =+C38/68 -> 0.07352941176
B39: BALTA | C39: 1 | D39: 0.01470588235
B40: BRASIL | C40: 2 | D40: 0.02941176471
B41: BUCARAMANGA | C41: 1 | D41: 0.01470588235
B42: CAJICA | C42: 1 | D42: 0.01470588235
B43: CANADA | C43: 2 | D43: 0.02941176471
B44: CARTAGENA | C44: 1 | D44: 0.01470588235
B45: CHIA | C45: 1 | D45: 0.01470588235
B46: COTA | C46: 2 | D46: 0.02941176471
B47: EEUU | C47: 1 | D47: 0.01470588235
B48: FUNZA | C48: 1 | D48: 0.01470588235
B49: HUILA | C49: 4 | D49: 0.05882352941
B50: IBAGUE | C50: 1 | D50: 0.01470588235
B51: LA CALERA | C51: 1 | D51: 0.01470588235
B52: MADRID | C52: 4 | D52: 0.05882352941
B53: MANIZALES | C53: 1 | D53: 0.01470588235
B54: MANIZALEZ | C54: 1 | D54: 0.01470588235
B55: MEXICO | C55: 4 | D55: 0.05882352941
B56: MOSQUERA | C56: 2 | D56: 0.02941176471
B57: PEREIRA | C57: 2 | D57: 0.02941176471
B58: SANTANDER | C58: 1 | D58: 0.01470588235
B59: SIBATE | C59: 2 | D59: 0.02941176471
B60: SOACHA | C60: 18 | D60: 0.2647058824
B61: SOGAMOSO | C61: 1 | D61: 0.01470588235
B62: SUBACHOQUE | C62: 1 | D62: 0.01470588235
B63: TULUA | C63: 1 | D63: 0.01470588235
B64: TUNJA | C64: 1 | D64: 0.01470588235
B65: VALLE | C65: 1 | D65: 0.01470588235
B66: VILLAVICENCIO | C66: 2 | D66: 0.02941176471
B67: VIOTA | C67: 1 | D67: 0.01470588235
B68: ZIPAQUIRA | C68: 1 | D68: 0.01470588235
B69: Total | C69: 997 | D69: =+C69/997 -> 1
A80: 3 Primera vez en Bogota (Base 68=6.8%)
C81: Frecuencia | D81: Porcentaje
A82: Válido | B82: Si | C82: 10 | D82: =+C82/68 -> 0.1470588235
B83: No | C83: 58 | D83: 0.8529411765
B84: No aplica | C84: 929 | D84: =+C84/997 -> 0.9317953862
B85: Total | C85: 997 | D85: 1
A98: 4 Durmio o piensa dormir (Base 68=6.8%)
C99: Frecuencia | D99: Porcentaje
A100: Válido | B100: Si | C100: 35 | D100: =+C100/52 -> 0.6730769231
B101: No | C101: 31 | D101: =+C101/52 -> 0.5961538462
B102: Ns/Nr | C102: 2 | D102: =+C102/724 -> 0.002762430939
B103: No aplica | C103: 929 | D103: 0.9317953862
B104: Total | C104: 997 | D104: 1
A117: 5 Cuantas noches (Base 35 = 3.5%)
C118: Frecuencia | D118: Porcentaje
A119: Válido | B119: Una | C119: 5 | D119: =+C119/35 -> 0.1428571429
B120: Dos | C120: 8 | D120: =+C120/35 -> 0.2285714286
B121: Tres | C121: 6 | D121: 0.1714285714
B122: Cuatro | C122: 2 | D122: 0.05714285714
B123: Cinco | C123: 1 | D123: 0.02857142857
B124: Seis | C124: 2 | D124: 0.05714285714
B125: Siete | C125: 1 | D125: 0.02857142857
B126: Ocho | C126: 1 | D126: 0.02857142857
B127: Diez | C127: 2 | D127: 0.05714285714
B128: Entre once y más | C128: 7 | D128: 0.2
B129: No aplica | C129: 962 | D129: =+C129/997 -> 0.9648946841
B130: Total | C130: 997 | D130: =+C130/997 -> 1
A143: 6 Donde piensa alojarse (Base 35 = 3.5%)
C144: Frecuencia | D144: Porcentaje
A145: Válido | B145: Hotel | C145: 8 | D145: =+C145/35 -> 0.2285714286
B146: Apartamento de alquiler | C146: 3 | D146: =+C146/35 -> 0.08571428571
B147: Casa de familiares o amigos | C147: 22 | D147: 0.6285714286
B148: Otro ¿Cuál? | C148: 2 | D148: 0.05714285714
B149: No aplica | C149: 962 | D149: =+C149/997 -> 0.9648946841
B150: Total | C150: 997 | D150: =+C150/997 -> 1
A165: 7 Motivo del viaje (Base 68=6.8%)
C166: Frecuencia | D166: Porcentaje
A167: Válido | B167: Asistencia a el evento | C167: 43 | D167: =+C167/68 -> 0.6323529412
B168: Vacaciones/Recreación | C168: 8 | D168: =+C168/68 -> 0.1176470588
B169: Negocios | C169: 6 | D169: 0.08823529412
B170: Visitas a familiares o amigos | C170: 8 | D170: 0.1176470588
B171: Otro ¿Cuál? | C171: 3 | D171: 0.04411764706
B172: No aplica | C172: 962 | D172: =+C172/997 -> 0.9648946841
B173: Total | C173: 997 | D173: =+C173/997 -> 1
F182: Recorrido por la ciudad | G182: 23 | H182: =+G182/68 -> 0.3382352941
A183: 8a Recorrido por la ciudad (Base 68=6.8%) | F183: Visita a parques | G183: 12 | H183: =+G183/68 -> 0.1764705882
C184: Frecuencia | D184: Porcentaje | F184: Visita a museos | G184: 13 | H184: 0.1911764706
A185: Válido | B185: Si | C185: 23 | D185: =+C185/68 -> 0.3382352941 | F185: Vida nocturna | G185: 16 | H185: 0.2352941176
B186: No aplica | C186: 974 | D186: =+C186/997 -> 0.9769307924 | F186: Gastronomía | G186: 13 | H186: 0.1911764706
B187: Total | C187: 997 | D187: =+C187/997 -> 1 | F187: Compras | G187: 10 | H187: 0.1470588235
F188: Cine | G188: 7 | H188: 0.1029411765
A189: 8b Visita a parques (Base 68=6.8%) | F189: Ninguna | G189: 19 | H189: 0.2794117647
C190: Frecuencia | D190: Porcentaje | F190: Otras | G190: 16 | H190: 0.2352941176
A191: Válido | B191: Si | C191: 12 | D191: =+C191/52 -> 0.2307692308
B192: No aplica | C192: 985 | D192: =+C192/997 -> 0.9879638917
B193: Total | C193: 997 | D193: =+C193/997 -> 1
A195: 8c Visitas a museos (Base 68=6.8%)
C196: Frecuencia | D196: Porcentaje
A197: Válido | B197: Si | C197: 13 | D197: =+C197/52 -> 0.25
B198: No aplica | C198: 984 | D198: =+C198/997 -> 0.9869608826
B199: Total | C199: 997 | D199: =+C199/997 -> 1
A201: 8d Vida nocturna (Base 68=6.8%)
C202: Frecuencia | D202: Porcentaje
A203: Válido | B203: Si | C203: 16 | D203: =+C203/52 -> 0.3076923077
B204: No aplica | C204: 981 | D204: =+C204/997 -> 0.9839518556
B205: Total | C205: 997 | D205: =+C205/997 -> 1
A207: 8e Gastronomia (Base 68=6.8%)
C208: Frecuencia | D208: Porcentaje
A209: Válido | B209: Si | C209: 13 | D209: =+C209/52 -> 0.25
B210: No aplica | C210: 984 | D210: =+C210/997 -> 0.9869608826
B211: Total | C211: 997 | D211: =+C211/997 -> 1
A213: 8f Compras (Base 68=6.8%)
C214: Frecuencia | D214: Porcentaje
A215: Válido | B215: Si | C215: 10 | D215: =+C215/52 -> 0.1923076923
B216: No aplica | C216: 987 | D216: =+C216/997 -> 0.9899699097
B217: Total | C217: 997 | D217: =+C217/997 -> 1
A219: 8g Cine (Base 68=6.8%)
C220: Frecuencia | D220: Porcentaje
A221: Válido | B221: Si | C221: 7 | D221: =+C221/52 -> 0.1346153846
B222: No aplica | C222: 990 | D222: =+C222/997 -> 0.9929789368
B223: Total | C223: 997 | D223: =+C223/997 -> 1
A225: 8h Ninguna (Base 68=6.8%)
C226: Frecuencia | D226: Porcentaje
A227: Válido | B227: Si | C227: 19 | D227: =+C227/52 -> 0.3653846154
B228: No aplica | C228: 978 | D228: =+C228/997 -> 0.9809428285
B229: Total | C229: 997 | D229: =+C229/997 -> 1
A231: 8i Otras (Base 68=6.8%)
C232: Frecuencia | D232: Porcentaje
A233: Válido | B233: Si | C233: 16 | D233: =+C233/52 -> 0.3076923077
B234: No aplica | C234: 981 | D234: =+C234/997 -> 0.9839518556
B235: Total | C235: 997 | D235: =+C235/997 -> 1
A246: 9 Incluyendo esta a cuantas versiones
C247: Frecuencia | D247: Porcentaje
A248: Válido | B248: Una | C248: 554 | D248: =+C248/997 -> 0.555667001
B249: Dos | C249: 151 | D249: =+C249/997 -> 0.1514543631
B250: Tres | C250: 104 | D250: 0.1043129388
B251: Cuatro | C251: 58 | D251: 0.05817452357
B252: Cinco | C252: 33 | D252: 0.03309929789
B253: Seis | C253: 15 | D253: 0.01504513541
B254: Siete | C254: 16 | D254: 0.01604814443
B255: Ocho | C255: 14 | D255: 0.01404212638
B256: Nueve | C256: 2 | D256: 0.002006018054
B257: Diez | C257: 12 | D257: 0.01203610832
B258: Entre once y veinte | C258: 30 | D258: 0.03009027081
B259: Ns/Nr | C259: 8 | D259: 0.008024072217
B260: Total | C260: 997 | D260: 1
A277: 10 Asistio el año pasado (Base 435 = 43.6%)
C278: Frecuencia | D278: Porcentaje
A279: Válido | B279: Si | C279: 222 | D279: =+C279/435 -> 0.5103448276
B280: No | C280: 202 | D280: =+C280/435 -> 0.4643678161
B281: Ns/Nr | C281: 11 | D281: 0.02528735632
B282: No aplica | C282: 562 | D282: =+C281/997 -> 0.0110330993
B283: Total | C283: 997 | D283: =+C283/997 -> 1
A299: 11a. Con respecto a la versión anterior, díganos si mejoro empeoro o sigue igual la calidad de los Artístas nacionales (Base 222 = 22.3%)
C300: Frecuencia | D300: Porcentaje
A301: Válido | B301: Mejoro | C301: 95 | D301: =+C301/222 -> 0.4279279279
B302: Empeoro | C302: 41 | D302: =+C302/222 -> 0.1846846847
B303: Sigue igual | C303: 71 | D303: 0.3198198198
B304: Ns/Nr | C304: 15 | D304: 0.06756756757
B305: No aplica | C305: 775 | D305: =+C305/997 -> 0.777331996
B306: Total | C306: 724 | D306: 100
A320: 11b. Con respecto a la versión anterior, díganos si mejoro empeoro o sigue igual la calidad de los Artistas internacionales (Base 222 = 22.3%)
C321: Frecuencia | D321: Porcentaje
A322: Válido | B322: Mejoro | C322: 84 | D322: =+C322/222 -> 0.3783783784
B323: Empeoro | C323: 50 | D323: =+C323/222 -> 0.2252252252
B324: Sigue igual | C324: 71 | D324: 0.3198198198
B325: Ns/Nr | C325: 17 | D325: 0.07657657658
B326: No aplica | C326: 775 | D326: =+C326/997 -> 0.777331996
B327: Total | C327: 724 | D327: 100
A343: 12 Que tanto conoce de la musica
C344: Frecuencia | D344: Porcentaje
A345: Válido | B345: Nada | C345: 37 | D345: =+C345/997 -> 0.037111334
B346: Algo | C346: 234 | D346: =+C346/997 -> 0.2347041123
B347: Poco | C347: 419 | D347: 0.4202607823
B348: Mucho | C348: 299 | D348: 0.2998996991
B349: Ns/Nr | C349: 8 | D349: 0.008024072217
B350: Total | C350: 997 | D350: 1
A366: 13a Sonido | F366: Sonido | G366: Bueno + Excelente | H366: =+D370+D371 -> 0.9478435306
C367: Frecuencia | D367: Porcentaje | F367: Iluminacion | G367: Bueno + Excelente | H367: =+D379+D380 -> 0.9007021063
A368: Válido | B368: Pésimo | C368: 7 | D368: =+C368/997 -> 0.00702106319 | F368: Orden en la entrada | G368: Bueno + Excelente | H368: =+D388+D389 -> 0.9378134403
B369: Malo | C369: 32 | D369: =+C369/997 -> 0.03209628887 | F369: Alimentos ofrecidos | G369: Bueno + Excelente | H369: =+D397+D398 -> 0.7662988967
B370: Bueno | C370: 511 | D370: 0.5125376128 | F370: Ubicacion de los baños | G370: Bueno + Excelente | H370: =+D406+D407 -> 0.779338014
B371: Excelente | C371: 434 | D371: 0.4353059178 | F371: Cantidad de baños | G371: Bueno + Excelente | H371: =+D415+D416 -> 0.7652958877
B372: Ns/Nr | C372: 13 | D372: 0.01303911735 | F372: Seguridad en el evento | G372: Bueno + Excelente | H372: =+D424+D425 -> 0.925777332
B373: Total | C373: 997 | D373: 1 | F373: Horarios del festival | G373: Bueno + Excelente | H373: 0.952
F374: Aseo en el evento | G374: Bueno + Excelente | H374: =+D442+D443 -> 0.9428284855
A375: 13b Iluminacion
C376: Frecuencia | D376: Porcentaje
A377: Válido | B377: Pésimo | C377: 8 | D377: =+C377/997 -> 0.008024072217
B378: Malo | C378: 58 | D378: =+C378/997 -> 0.05817452357
B379: Bueno | C379: 543 | D379: 0.5446339017
B380: Excelente | C380: 355 | D380: 0.3560682046
... 695 more rows
